Cogmind - Beta 15 *** ADVENTURER MODE // 2025.08.31 @ 16:15:23 Player: Knightshade Result: Self-destructed Performance ------------- Evolutions (1) 500 Regions Visited (3) 600 Robots Destroyed (70) 350 Value Destroyed (1658) 1658 Prototype IDs (11) 220 Alien Tech Used (0) 0 Bonus (135) 135 TOTAL SCORE: 3463 Bonus ------- Follower Combat Kills 135 Cogmind --------- Core Integrity 301/400 Matter 265/300 Energy 215/250 System Corruption 1% Temperature Cool (-100) Movement Rolling (230) Ox10 Location -9/Materials Parts ------- > --- POWER (1) -------- Ion Engine > --- PROPULSION (2) --- Wheel > --- UTILITY (4) ------ Cryofiber Web Cooling System Huge Storage Unit Medium Armor Plating > --- WEAPON (2) ------- Heavy Particle Gun Heavy Particle Gun > --- INVENTORY (25) --- Light Nuclear Core Light Nuclear Core Compact Wheel Scrap Suit Medium Storage Unit High-capacity Battery (250) Compact Matter Pod (150) Compact Matter Pod (150) Structural Scanner Machine Analyzer Seismic Detector Medium Armor Plating Hacking Suite Hacking Suite Heavy EM Pulse Gun Heavy EM Pulse Gun Heavy EM Pulse Gun Heavy Particle Gun Heavy Particle Gun Light Cannon Grenade Launcher Rocket Launcher Rocket Launcher Datajack Peak State ------------ > --- POWER ------------ Ion Engine > --- PROPULSION ------- Wheel Wheel > --- UTILITY ---------- Cryofiber Web Cooling System Huge Storage Unit Medium Armor Plating > --- WEAPON ----------- Heavy Particle Gun Heavy Particle Gun > --- INVENTORY -------- Light Nuclear Core Light Nuclear Core Compact Wheel Scrap Suit Medium Storage Unit High-capacity Battery Compact Matter Pod Compact Matter Pod Structural Scanner Machine Analyzer Seismic Detector Medium Armor Plating Hacking Suite Heavy EM Pulse Gun Heavy EM Pulse Gun Heavy EM Pulse Gun Heavy Particle Gun Heavy Particle Gun Light Cannon Grenade Launcher Rocket Launcher Rocket Launcher Datajack [Rating: 24] Favorites ----------- Power Ion Engine Engine Ion Engine Propulsion Wheel Wheel Wheel Utility Huge Storage Unit Device Structural Scanner Storage Huge Storage Unit Protection Light Armor Plating Weapon Advanced Beam Cannon Energy Gun EM Pulse Gun Energy Cannon Advanced Beam Cannon Ballistic Gun Light Assault Rifle Ballistic Cannon Light Cannon Special Melee Weapon Datajack Build | -11 -10 -10 -9 ------- Run | Yrd Mat Min Mat Slots Evolved 2 | . . . 2 Power . | . . . . Propulsion . | . . . . Utility 2 | . . . 2 Weapon . | . . . . Parts Attached 31 | 6 14 1 10 Power 4 | 1 2 . 1 Engine 4 | 1 2 . 1 Core . | . . . . Reactor . | . . . . Propulsion 5 | 2 2 1 . Treads . | . . . . Leg . | . . . . Wheel 5 | 2 2 1 . Hover . | . . . . Flight . | . . . . Utility 11 | 1 4 . 6 Device 6 | . 1 . 5 Storage 3 | 1 2 . . Processor . | . . . . Hackware . | . . . . Protection 2 | . 1 . 1 Artifact . | . . . . Weapon 11 | 2 6 . 3 Energy Gun 5 | 2 1 . 2 Energy Cannon 3 | . 2 . 1 Ballistic Gun 1 | . 1 . . Ballistic Cannon 1 | . 1 . . Launcher . | . . . . Special Weapon . | . . . . Impact Weapon . | . . . . Slashing Weapon . | . . . . Piercing Weapon . | . . . . Special Melee Weapon 1 | . 1 . . Unidentified Prototypes 1 | . . . 1 Parts Lost 8 | . 6 1 1 Power 2 | . 2 . . Propulsion 4 | . 2 1 1 Utility . | . . . . Weapon 2 | . 2 . . Highest Loss Streak 3 | . 3 1 1 To Critical Strikes . | . . . . Average Backups 15 | 2 10 17 23 Power 1 | . 1 2 2 Propulsion . | . . 1 1 Utility 6 | . 2 7 10 Weapon 6 | . 4 6 8 Tool/Special . | . . . . Unused Backups 26 | . 3 . 23 Power 2 | . . . 2 Propulsion 1 | . . . 1 Utility 12 | . 1 . 11 Weapon 11 | . 2 . 9 Tool/Special . | . . . . Average Slot Usage (%) 95 | . 92 99 98 Engine 12 | . 13 14 11 Wheel 23 | . 23 27 21 Device 11 | . 10 . 21 Storage 12 | . 14 14 11 Protection 7 | . . 14 11 Energy Gun 7 | . 13 . 4 Energy Cannon 15 | . 6 28 17 Ballistic Cannon 2 | . 5 . . Peak Build Rating 24 | 6 13 15 24 Average Rating 13 | 4 8 13 21 On Entrance 8 | . 6 13 15 Naked Turns . | . . . . Heaviest Build 103 | 12 96 96 103 Greatest Support 32 | 32 32 20 20 Greatest Overweight (x) 10 | . 9 9 10 Average Overweight (x) 4 | . 4 4 4 Largest Inventory Capacity 25 | 8 25 25 25 Average Capacity 24 | 7 24 25 25 Most Carried 25 | 4 16 24 25 Average Carried 16 | 2 10 18 24 Final Capacity 25 | 8 25 25 25 Final Carried 25 | 3 15 24 25 Class Distribution -------------------- 61% | Mutant 38% | Scavenger-Mutant Dominant Class ---------------- Mutant | -10/Materials Mutant | -10/Mines Scavenger-Mutant | -9/Materials Resources | -11 -10 -10 -9 ----------- Run | Yrd Mat Min Mat Matter Collected 647 | 251 266 10 120 Remotely . | . . . . Salvage Created 2349 | 30 973 203 1143 Parts 137 | 4 52 18 63 Haulers Intercepted 6 | . 2 . 4 Recyclers Shooed . | . . . . Parts Field Recycled . | . . . . Retrieved Matter . | . . . . Parts Self-Destructed . | . . . . Prevented . | . . . . Kills | -11 -10 -10 -9 ------- Run | Yrd Mat Min Mat Combat Hostiles Destroyed 46 | . 17 9 20 Guns 12 | . 10 . 2 Cannons 34 | . 7 9 18 Classes Destroyed 12 | 1 6 2 3 Worker 4 | . 4 . . Builder 1 | . 1 . . Tunneler 2 | 1 1 . . Hauler 6 | . 2 . 4 Recycler 1 | . . 1 . Mechanic 3 | . 1 . 2 Operator 1 | . . . 1 Watcher 6 | . 3 . 3 Swarmer 12 | . . 9 3 Grunt 25 | . 17 . 8 Duelist 1 | . . . 1 Sentry 8 | . . . 8 Best Kill Streak 6 | 1 3 6 6 Combat Bots Only 5 | . 3 5 4 Max Kills in Single Turn 1 | 1 1 1 1 Gunslinging . | . . . . Exploded . | . . . . Melee . | . . . . Uniques/NPCs Destroyed . | . . . . Combat | -11 -10 -10 -9 -------- Run | Yrd Mat Min Mat Hostile Shots Fired 186 | . 107 21 58 Missed 55 | . 31 3 21 Hits 131 | . 76 18 37 Projectile 131 | . 76 18 37 Critical Strikes 3 | . . . 3 Damage Taken 1340 | . 824 106 410 Core 321 | . 186 36 99 Absorbed by Shields . | . . . . Ignored by Resistances 403 | . 252 36 115 Core Remaining (%) 55 | 100 . 11 . Volleys Fired 152 | 5 79 11 57 Largest 2 | 1 2 2 2 Hottest 136 | 40 136 136 136 Shots Fired 287 | 5 147 22 113 Gun 135 | 5 107 . 23 Cannon 152 | . 40 22 90 Launcher . | . . . . Special . | . . . . Kinetic 49 | . 49 . . Thermal 196 | . 61 22 113 Explosive . | . . . . Electromagnetic 42 | 5 37 . . Robot Hit Streak 33 | 3 25 33 14 Robot Miss Streak 4 | 1 4 1 3 Penetration Max . | . . . . Secondary Targets 3 | . 2 . 1 Max Gunslinging Chain 1 | . 1 . 1 Shots Hit Robots 213 | 4 110 18 81 Core Hits 87 | 1 42 10 34 Critical Kills . | . . . . Critical Parts Destroyed . | . . . . Critical Strikes 5 | . 5 . . Burn 4 | . 4 . . Blast 1 | . 1 . . Melee Attacks . | . . . . Impact . | . . . . Slashing . | . . . . Piercing . | . . . . Sneak Attacks . | . . . . Combat Hostiles . | . . . . Follow-up Attacks . | . . . . Damage Inflicted 3664 | 58 1575 367 1664 Guns 1371 | 58 962 . 351 Cannons 2272 | . 592 367 1313 Explosions 21 | . 21 . . Melee . | . . . . Ramming . | . . . . Kinetic 451 | . 451 . . Thermal 2814 | . 783 367 1664 Explosive . | . . . . Electromagnetic 399 | 58 341 . . Impact . | . . . . Slashing . | . . . . Piercing . | . . . . Highest Corruption 1 | . . . 1 Average Corruption 1 | . . . 1 Corruption Purged . | . . . . Corruption Blocked . | . . . . Effects 12 | . . . 12 Matter Fused 5 | . . . 5 Energy Discharges 2 | . . . 2 Data Loss (minor) 1 | . . . 1 Data Loss (major) 1 | . . . 1 Misfires 1 | . . . 1 Weapon Failures 2 | . . . 2 Overload Shots . | . . . . Overflow Damage 38 | . 3 1 34 Projectiles 38 | . 3 1 34 Explosions . | . . . . Melee . | . . . . Knockbacks 4 | . 4 . . Impact . | . . . . Kinetic 4 | . 4 . . Secondary . | . . . . Self-Inflicted Damage . | . . . . Shots . | . . . . Rammed . | . . . . Targets Rammed . | . . . . Kicked . | . . . . Crushed . | . . . . Highest Temperature 340 | . 340 318 326 Average Temperature 88 | . 75 144 83 Received Heat Transfer 753 | . 525 . 228 Effects 3 | . 1 . 2 Energy Bleed 1 | . . . 1 Interference 1 | . 1 . . Short Circuit 1 | . . . 1 Siege Activations . | . . . . Martial Activations . | . . . . Shielding Activations . | . . . . Robots Disrupted . | . . . . Combat Hostiles . | . . . . Robots Corrupted . | . . . . Combat Hostiles . | . . . . Parts Fried 2 | . 2 . . Impact Corruptions . | . . . . Robots Melted . | . . . . Combat Hostiles . | . . . . Parts Melted 13 | . 7 . 6 Heat Transferred 6007 | . 2270 666 3071 Parts Sabotaged . | . . . . Parts Stolen . | . . . . Parts Stripped . | . . . . Power Chain Reactions 1 | . 1 . . Alert | -11 -10 -10 -9 ------- Run | Yrd Mat Min Mat Maximum Alert Level 1 | . . . 1 Low Security (%) 93 | 100 100 100 78 Level 1 6 | . . . 21 Level 2 . | . . . . Level 3 . | . . . . Level 4 . | . . . . Level 5 . | . . . . High Security . | . . . . Max Security . | . . . . Peak Influence 241 | 5 168 194 241 Initial 1 | . . 1 . Average 84 | . 61 63 135 Influence Increases 1785 | 5 732 293 755 Destroy 0b10 Robot/C 1020 | . 340 180 500 Destroy 0b10 Robot/NC 125 | 5 60 5 55 Destroy Leader 276 | . 90 30 156 Allied During Kill 14 | . . . 14 Trap Triggered on 0b10 10 | . 10 . . Successful Hack 36 | . 24 . 12 Select Force Hacks 60 | . 60 . . Disable Machine 45 | . 9 18 18 Destroy Structure 4 | . 4 . . Lose Combat Pursuer 195 | . 135 60 . Influence Decreases 1745 | 5 727 298 715 Entered New Map 4 | . . 4 . Time Decay 1571 | 5 667 264 635 Lost Part 80 | . 60 10 10 Lost Ally 90 | . . 20 70 Squads Dispatched 10 | . 6 . 4 Investigation 8 | . 6 . 2 Extermination . | . . . . Reinforcement 2 | . . . 2 Assault . | . . . . Garrison . | . . . . Intercept . | . . . . Searches Triggered . | . . . . Construction Impeded . | . . . . Haulers Reinforced . | . . . . Active Scanning Responses . | . . . . Cargo Convoy Interrupts . | . . . . Stealth | -11 -10 -10 -9 --------- Run | Yrd Mat Min Mat Distress Signals 2 | . . . 2 Communications Jammed . | . . . . Distress Signals . | . . . . Times Spotted 69 | . 27 7 35 Peak Tracking Total 6 | . 5 5 6 Tactical Retreats 7 | . 5 2 . Traps | -11 -10 -10 -9 ------- Run | Yrd Mat Min Mat Traps Triggered 6 | . 4 . 2 Indirectly . | . . . . Trap Hack Attempts 22 | . 22 . . Triggered . | . . . . Disarmed . | . . . . Reprogrammed 1 | . 1 . . Reused 1 | . 1 . . Traps Extracted . | . . . . Installed . | . . . . Triggered 1 | . 1 . . Most Traps Carried 5 | . . 5 5 Machines | -11 -10 -10 -9 ---------- Run | Yrd Mat Min Mat Machines Disabled 5 | . 1 2 2 Max in Single Turn 1 | . 1 1 1 Machines Repaired . | . . . . Machines Dismantled . | . . . . Machines Sabotaged . | . . . . Overloaded Fab Kills . | . . . . Hacking | -11 -10 -10 -9 --------- Run | Yrd Mat Min Mat Machines Accessed 17 | . 10 . 7 Terminals 15 | . 8 . 7 Fabricators . | . . . . Repair Stations . | . . . . Recycling Units 2 | . 2 . . Scanalyzers . | . . . . Garrison Access . | . . . . Total Hacks 60 | . 37 . 23 Successful 41 | . 23 . 18 Failed 19 | . 14 . 5 Catastrophic . | . . . . Database Lockouts . | . . . . Manual 54 | . 33 . 21 Terminals 57 | . 34 . 23 Fabricators . | . . . . Repair Stations . | . . . . Recycling Units 3 | . 3 . . Scanalyzers . | . . . . Garrison Access . | . . . . Terminal Hacks 13 | . 9 . 4 Prototype ID Bank 10 | . 7 . 3 Terminal Index 1 | . . . 1 Recall Investigation 1 | . 1 . . Registered Components 1 | . 1 . . Fabricator Hacks . | . . . . Repair Station Hacks . | . . . . Recycling Unit Hacks 1 | . 1 . . Report Inventory 1 | . 1 . . Scanalyzer . | . . . . Garrison Access Hacks . | . . . . Unauthorized Hacks 27 | . 13 . 14 Terminals 25 | . 11 . 14 Assimilate 1 | . . . 1 Botnet 13 | . 6 . 7 Operators 1 | . . . 1 Skim 10 | . 5 . 5 Fabricators . | . . . . Repair Stations . | . . . . Recycling Units 2 | . 2 . . Tunnel 2 | . 2 . . Scanalyzers . | . . . . Garrison Access . | . . . . Data Cores Recovered . | . . . . Used . | . . . . Hacking Detections 15 | . 8 . 7 Full Trace Events 2 | . 1 . 1 Feedback Events 1 | . . . 1 Corruption 1 | . . . 1 Feedback Blocked . | . . . . Robot Schematics Acquired . | . . . . Robots Built . | . . . . Authchips . | . . . . Time . | . . . . Total Robot Build Rating . | . . . . Part Schematics Acquired . | . . . . Parts Built . | . . . . Authchips . | . . . . Time . | . . . . Total Part Build Rating . | . . . . Parts Repaired . | . . . . Time . | . . . . Parts Recycled . | . . . . Recycled Matter . | . . . . Retrieved Matter . | . . . . Retrieved Components . | . . . . Parts Scanalyzed . | . . . . Part Schematics Acquired . | . . . . Parts Damaged . | . . . . Bothacking | -11 -10 -10 -9 ------------ Run | Yrd Mat Min Mat Used RIF Installer . | . . . . Robots Hacked . | . . . . Non-combat . | . . . . Combat . | . . . . Robot Hacks Applied . | . . . . Relay Couplers Released . | . . . . Fabnet Peak Effective % . | . . . . Robots Rewired . | . . . . Allies Hacked . | . . . . Hacks Repelled . | . . . . Allies | -11 -10 -10 -9 -------- Run | Yrd Mat Min Mat Total Allies 5 | . . 4 1 Largest Group 3 | . . 3 3 Highest-Rated Group 40 | . . 40 40 Highest-Rated Ally 31 | . . 31 16 Total Orders . | . . . . Ally Attacks 46 | . . 3 43 Total Damage 489 | . . . 489 Kills 6 | . . . 6 Allies Corrupted . | . . . . Allies Melted . | . . . . Intel | -11 -10 -10 -9 ------- Run | Yrd Mat Min Mat Active Infowar (turns) 1959 | . 1354 . 605 Structural 1959 | . 1354 . 605 Robot Analysis Total . | . . . . Derelict Logs Recovered 3 | . . 3 . Drone Launches . | . . . . Drone Recoveries . | . . . . Exploration | -11 -10 -10 -9 ------------- Run | Yrd Mat Min Mat Turns Passed 4066 | 87 1733 908 1338 Spaces Moved 2089 | 64 882 555 588 Core 3 | 3 . . . Treads . | . . . . Legs . | . . . . Wheels 2086 | 61 882 555 588 Hover . | . . . . Flight . | . . . . Fastest Speed 50 | 50 100 140 140 Average Speed 145 | 97 148 140 151 Slowest Speed 230 | 100 215 215 230 Overloaded Moves . | . . . . Propulsion Burnouts . | . . . . Robots Hopped . | . . . . Potential Cave-ins . | . . . . Cave-ins Triggered . | . . . . Exploration Rate (%) 64 | 4 95 98 60 Regions Visited 3 Branch Regions 1 Pre-discovered Areas 6 | . 3 2 1 Known Exits Taken 1 | . . 1 . Unknown Exits Taken 2 | 1 1 . . Scrap Searched 1 | . . 1 . Spaces Dug . | . . . . Terrain Destroyed 2 | . 2 . . Melee . | . . . . Projectile . | . . . . AOE 2 | . 2 . . Terrain Rammed . | . . . . Walls Destroyed . | . . . . Machines Disabled . | . . . . Actions | -11 -10 -10 -9 --------- Run | Yrd Mat Min Mat Total 2831 | 83 1160 659 929 Wait 450 | . 130 84 236 Move 2086 | 63 881 554 588 Hop . | . . . . Pick Up 64 | 9 26 9 20 Fast Attach . | . . . . Attach 20 | 6 7 1 6 Detach . | . . . . Swap 14 | . 8 . 6 Drop 23 | . 7 . 16 Fire 152 | 5 79 11 57 Melee . | . . . . Ram . | . . . . Kick . | . . . . Crush . | . . . . Escape Stasis . | . . . . Rewire . | . . . . Trap 22 | . 22 . . Miscellaneous . | . . . . Route ------- -11/Scrapyard -10/Materials (discovered 6 exits: *Mat x3 / [*Min x2] / Sub) -10/Mines (discovered 4 exits: *Mat x2 / *Exi / Sub) -9/Materials (discovered 4 exits: *Mat x3 / Min) History --------- Turn | Location | Event 9 | -11/Scrapyard | Discovered new exit (range 16) 88 | -11/Scrapyard | Entered Materials 142 | -10/Materials | Discovered new exit (range 9) 187 | -10/Materials | Discovered new exit (range 8) 307 | -10/Materials | Build established: Mutant 456 | -10/Materials | Discovered new exit (range 9) 534 | -10/Materials | Lost 3 parts (1p2w) 745 | -10/Materials | Core integrity fell below 50% 807 | -10/Materials | Discovered new exit (range 15) 996 | -10/Materials | Identified exit to Materials 1054 | -10/Materials | Learned location of 2 exits from Mines 1100 | -10/Materials | Learned location of 1 exit from Storage 1138 | -10/Materials | Learned location of Subcaves (-10) 1166 | -10/Materials | Identified exit to Subcaves 1188 | -10/Materials | Learned 4 Subcaves zone layouts 1412 | -10/Materials | Build established: Scavenger-Mutant 1821 | -10/Materials | Entered Mines 1823 | -10/Mines | Identified exit to Exiles 1867 | -10/Mines | Received a Mining Laser from a helpful Derelict 1931 | -10/Mines | Core integrity fell below 20% 1975 | -10/Mines | Learned 2 Materials zone layouts 2007 | -10/Mines | Found a Scrap Suit stashed away for nefarious purposes 2010 | -10/Mines | Found Scrap Suit 2043 | -10/Mines | Build established: Mutant 2338 | -10/Mines | Learned location of Zion (-7) 2539 | -10/Mines | Learned location of Storage (-7) 2577 | -10/Mines | Deemed a non-threat by the Exiles lab entrance 2627 | -10/Mines | Found a hidden stash of uninstalled traps 2719 | -10/Mines | Assisted by bots powering up and referring to "LRC-V3" 2729 | -10/Mines | Entered Materials 2729 | -9/Materials | Accompanied by 3 allies 2729 | -9/Materials | Evolved 2 slots: Utility x2 2730 | -9/Materials | Identified exit to Materials 2892 | -9/Materials | Lost 3 allies 3171 | -9/Materials | Build established: Scavenger-Mutant 3725 | -9/Materials | Discovered exit to Materials (range 16) 3812 | -9/Materials | Identified exit to Mines 4066 | -9/Materials | Build established: Mutant 4067 | -9/Materials | Self-destructed Last Messages --------------- 03894_ System corrupted: Substantial component data lost. 03918_ System corrupted: FCS attempts to trigger Hvy. Particle Gun. 03918_ System corrupted: Hvy. Particle Gun misfires. 03918_ Terminal disabled. 03979_ Wheel destroyed. 03992_ Heat Sink melted. 03992_ Y-45 Defender destroyed. 04015_ K-01 Serf collects debris. 04038_ O-16 Technician uses terminal to summon reinforcements. 04038_ ALERT: Hostiles spotted, dispatching reinforcements to Terminal M007. 04038_ O-16 Technician locks terminal. 04045_ Critical hit (Burn: +37). 04046_ U-05 Engineer builds a Door. 04049_ O-16 Technician destroyed. 04049_ Switching to secondary target: Y-45 Defender. 04052_ Heat Sink melted. 04052_ Y-45 Defender destroyed. 04056_ K-01 Serf collects debris. 04066_ Acquired Hacking Suite. Map ----- +----------------------------------------------------+ | !=%* ##### ????????????????????????????????? | | = ## ######????????????????????????????????????? | | #### ##????????????????????????????????????????? | | ####? # ????????????????????????????????????????? | | ????? + ????????????????????????????????????????? | | ?????? # ????????????????????????????????????????? | | ?????? ##????+???????????????????????????????????? | | ?????? ????????????????????????????????????????? | | ?????????????????????????????????????????????????? | | ?????????????????????????????????????????????????? | | ?????>???????????????????? ??????????????????????? | | ?????????????????+???????? ??????????????????????? | | ?????????????????????????? ??????????????????????? | | ?????????????????????????# ??????????????????????? | | ?????????????????#??????? ??????????????????????? | | ????????????????? ??????? ??????????????????????? | | ????????????????? ??????? ??????????????????????? | | ????????????????? ??????# ??????????????????????? | | ??????????????? ??????# ??????????????????????? | | ????????#??????"" ??????# #??????????????????????? | | ????????# ?????"" ??????# #?????????#????????????? | | ????????# ????"" ??????# #?####### ?????????????? | | ????????# ??? ????#?# #?# [ ?????????????? | | ???????## #??#+#??#+#?# #?#*%""""" #???????????? | | ???????# ### #### ###%### =""""" #???????????? | | ???????# [ u @ # """"" #???????????? | | ???????# %= k #???????????? | | ???????# * uk # #???????????? | | ???????# ###u###/###### # ""T"" #???????????? | | ???????????????# # # # """"" #???????????? | | ???????????????# # """ # # #???????????? | | ???????????????# # """ # ####+####????????????? | | ???????????????# # [ """ # #????????????????????? | | ???????????????# # + ????????????????????? | | ???????????????# # """ ###????????????????????? | | ???????????????# # """ #??????????????????????? | | ???????????????# # "?? #??????????????????????? | | ???????????????# # ?? ???????????????????????? | | ???????????????# #####???????????????????????????? | | ################ ###?????????????????????????????? | | #?????????????????????????????? | | ### #?????????????????????????????? | | #?# #?????????????????????????????? | | +######### #?# #???????????###########???????? | | #??# #?# #???????????# #???????? | | "" ####+#### ##???????????# """ ! T #???????? | | "" ## # #????????????# """ ! #???????? | | "" ## + #????????????# """ #???????? | | ## # #??########??# [##??????? | | "" ## """ # #??# !!!!#??# [%#??????? | +----------------------------------------------------+ Best States ------------- Heat Dissipation 56 Energy Generation 10 Energy Capacity 250 Matter Stores 300 Matter Capacity 300 Sight Range 16 Terrain Scan Density 10 Base Temperature (-) 100 Armor Coverage 225 Resistance: KI 20 Resistance: TH 20 Resistance: EX 20 Resistance: EM 20 Resistance: I 20 Resistance: S 20 Resistance: P 20 Evasion (%) 40 Offensive Hacking 10 Trap Extractor Capacity 4 Item Schematics ----------------- None Robot Schematics ------------------ None Fabricated ------------ Nothing Repaired ---------- Nothing Alien Tech Used ----------------- None Achievements -------------- None Challenges ------------ None Game ------ Seed GaussStoragePower Manual? 0 Play Time 00:31:48 Cumulative 111.0 hours Start 2025.08.31 @ 14:52:14 End 2025.08.31 @ 16:15:23 Sessions 1 Manual Loads 0 Difficulty Adventurer Special Mode None Game No. 79 Rogue 0 Adventurer 79 Explorer 0 Win Type - Total 0 Types 0/0/0/0/0/0/0/0/0/0 Lore% 27 Gallery% 43 Achievement% 38 Wizard Run 0 Options --------- Layout 0 ASCII 0 Keyboard 0 Movement Mouse Keybinds 0 Fullscreen 1 Font 18/SmallcapsGlow Map View 76x50 Zoom Use 0% Tactical HUD 1 Map Filters NONE Filters NONE Steam 1 RUN: f10aec45-3c6d-4441-9e4a-0787371b24fb